Cogmind - Beta 16.1 @@@ ROGUE MODE // 2026.03.08 @ 16:08:38 Player: Tereza Result: Self-destructed Performance ------------- Evolutions (1) 500 Regions Visited (2) 400 Robots Destroyed (19) 95 Value Destroyed (537) 537 Prototype IDs (0) 0 Alien Tech Used (0) 0 Bonus (0) 0 TOTAL SCORE: 1532 Bonus ------- None Cogmind --------- Core Integrity 400/400 Matter 270/300 Energy 248/250 System Corruption 0% Temperature Cool (0) Movement Treading (240) Ox1 Location -9/Materials Parts ------- > --- POWER (1) -------- Ion Engine > --- PROPULSION (3) --- Light Treads Light Treads Improved Treads > --- UTILITY (3) ------ Medium Storage Unit Huge Storage Unit Seismic Detector > --- WEAPON (2) ------- Light Assault Rifle Flail > --- INVENTORY (25) --- Light Treads Small Storage Unit Sensor Array Signal Interpreter Seismic Detector Light Assault Rifle Datajack Flail Peak State ------------ > --- POWER ------------ Ion Engine > --- PROPULSION ------- Light Treads Light Treads Improved Treads > --- UTILITY ---------- Medium Storage Unit Huge Storage Unit Seismic Detector > --- WEAPON ----------- Light Assault Rifle Flail > --- INVENTORY -------- Light Treads Small Storage Unit Sensor Array Signal Interpreter Seismic Detector Light Assault Rifle Datajack Flail [Rating: 11] Favorites ----------- Power Ion Engine Engine Ion Engine Propulsion Light Treads Treads Light Treads Utility Small Storage Unit Device Seismic Detector Storage Small Storage Unit Weapon Light Assault Rifle Energy Gun EM Pulse Gun Ballistic Gun Light Assault Rifle Impact Weapon Flail Build | -11 -10 -9 ------- Run | Yrd Mat Mat Slots Evolved 2 | . . 2 Power . | . . . Propulsion 1 | . . 1 Utility 1 | . . 1 Weapon . | . . . Parts Attached 15 | 8 5 2 Power 2 | 1 1 . Engine 2 | 1 1 . Core . | . . . Reactor . | . . . Propulsion 3 | 2 . 1 Treads 3 | 2 . 1 Leg . | . . . Wheel . | . . . Hover . | . . . Flight . | . . . Utility 5 | 2 2 1 Device 2 | 1 1 . Storage 3 | 1 1 1 Processor . | . . . Hackware . | . . . Protection . | . . . Artifact . | . . . Weapon 5 | 3 2 . Energy Gun 3 | 3 . . Energy Cannon . | . . . Ballistic Gun 1 | . 1 . Ballistic Cannon . | . . . Launcher . | . . . Special Weapon . | . . . Impact Weapon 1 | . 1 . Slashing Weapon . | . . . Piercing Weapon . | . . . Special Melee Weapon . | . . . Unidentified Prototypes . | . . . Corrupted Parts 1 | . 1 . System Corruption 3 | . 3 . Parts Lost 2 | . 2 . Power 1 | . 1 . Propulsion . | . . . Utility . | . . . Weapon 1 | . 1 . Highest Loss Streak 1 | . 1 . To Critical Strikes . | . . . Average Backups 6 | 4 7 8 Power . | . . . Propulsion 2 | 2 2 1 Utility 2 | . 2 4 Weapon 1 | 1 1 2 Tool/Special . | . . . Unused Backups 9 | . 3 6 Power . | . . . Propulsion 4 | . 3 1 Utility 2 | . . 2 Weapon 2 | . . 2 Tool/Special 1 | . . 1 Average Slot Usage (%) 96 | . 96 83 Engine 11 | . 11 11 Treads 28 | . 28 28 Device 13 | . 14 11 Storage 13 | . 14 11 Energy Gun 9 | . 9 . Ballistic Gun 9 | . 9 11 Impact Weapon 8 | . 8 11 Peak Build Rating 11 | 7 8 11 Average Rating 7 | 4 7 9 On Entrance 5 | . 7 8 Avg Prop Armor Cover (%) . | . . . Naked Turns . | . . . Heaviest Build 19 | 13 19 19 Greatest Support 63 | 40 40 63 Greatest Overweight (x) 1 | 1 . . Average Overweight (x) . | . . . Largest Inventory Capacity 25 | 8 10 25 Average Capacity 8 | 7 8 10 Most Carried 9 | 6 8 9 Average Carried 6 | 4 7 8 Final Capacity 25 | 8 10 25 Final Carried 8 | 5 8 8 Class Distribution -------------------- 100% | Mutant Dominant Class ---------------- Mutant | -10/Materials Mutant | -9/Materials Resources | -11 -10 -9 ----------- Run | Yrd Mat Mat Matter Collected 331 | 237 94 . Remotely . | . . . Salvage Created 659 | 24 635 . Parts 21 | 2 19 . Haulers Intercepted 2 | . 2 . Recyclers Shooed . | . . . Parts Field Recycled . | . . . Retrieved Matter . | . . . Parts Self-Destructed . | . . . Prevented . | . . . Parts Restored . | . . . Kills | -11 -10 -9 ------- Run | Yrd Mat Mat Combat Hostiles Destroyed 12 | . 12 . Melee 5 | . 5 . Guns 1 | . 1 . AOE 2 | . 2 . Classes Destroyed 6 | 1 5 . Worker 1 | . 1 . Tunneler 1 | 1 . . Hauler 2 | . 2 . Operator 2 | . 2 . Watcher 1 | . 1 . Grunt 12 | . 12 . Best Kill Streak 3 | 1 3 . Combat Bots Only 2 | . 2 . Max Kills in Single Turn 1 | 1 1 . Gunslinging . | . . . Exploded 1 | . 1 . Melee 1 | . 1 . Uniques/NPCs Destroyed . | . . . Combat | -11 -10 -9 -------- Run | Yrd Mat Mat Hostile Shots Fired 75 | . 75 . Missed 24 | . 24 . Hits 51 | . 51 . Projectile 51 | . 51 . Damage Taken 605 | 4 601 . Core 57 | . 57 . Absorbed by Shields . | . . . Core Remaining (%) 88 | 100 77 . Volleys Fired 25 | 3 22 . Largest 2 | 2 2 . Hottest 80 | 80 80 . Shots Fired 50 | 6 44 . Gun 50 | 6 44 . Cannon . | . . . Launcher . | . . . Special . | . . . Kinetic 6 | . 6 . Thermal 10 | . 10 . Explosive . | . . . Electromagnetic 34 | 6 28 . Robot Hit Streak 6 | 2 6 . Robot Miss Streak 4 | 1 4 . Penetration Max . | . . . Secondary Targets . | . . . Shots Hit Robots 58 | 3 55 . Core Hits 17 | 1 16 . Critical Kills 3 | . 3 . Critical Parts Destroyed 1 | . 1 . Critical Strikes 4 | . 4 . Smash 4 | . 4 . Melee Attacks 36 | . 36 . Impact 36 | . 36 . Slashing . | . . . Piercing . | . . . Sneak Attacks 3 | . 3 . Combat Hostiles . | . . . Follow-up Attacks . | . . . Damage Inflicted 1601 | 72 1529 . Guns 344 | 43 301 . Cannons . | . . . Explosions 148 | 29 119 . Melee 1109 | . 1109 . Ramming . | . . . Kinetic 40 | . 40 . Thermal 225 | 29 196 . Explosive . | . . . Electromagnetic 227 | 43 184 . Impact 1109 | . 1109 . Slashing . | . . . Piercing . | . . . Highest Corruption 3 | . 3 . Average Corruption 3 | . 3 . Corruption Purged . | . . . Corruption Blocked . | . . . Overload Shots . | . . . Overflow Damage 314 | . 314 . Projectiles 6 | . 6 . Explosions . | . . . Melee 308 | . 308 . Knockbacks 10 | . 10 . Impact 8 | . 8 . Kinetic . | . . . Secondary 2 | . 2 . Self-Inflicted Damage 4 | 4 . . Shots 1 | 1 . . Rammed . | . . . Targets Rammed . | . . . Kicked . | . . . Crushed . | . . . Highest Temperature 132 | 66 132 . Average Temperature 43 | 32 45 . Received Heat Transfer 336 | . 336 . Siege Activations . | . . . Martial Activations . | . . . Shielding Activations . | . . . Robots Disrupted . | . . . Combat Hostiles . | . . . Robots Corrupted 6 | . 6 . Combat Hostiles 4 | . 4 . Parts Fried 11 | . 11 . Impact Corruptions 14 | . 14 . Robots Melted . | . . . Combat Hostiles . | . . . Parts Melted . | . . . Heat Transferred 375 | 50 325 . Parts Sabotaged . | . . . Parts Stolen . | . . . Parts Stripped . | . . . Power Chain Reactions 3 | 1 2 . Alert | -11 -10 -9 ------- Run | Yrd Mat Mat Maximum Alert Level . | . . . Low Security (%) 100 | 100 100 100 Level 1 . | . . . Level 2 . | . . . Level 3 . | . . . Level 4 . | . . . Level 5 . | . . . High Security . | . . . Max Security . | . . . Peak Influence 123 | 5 123 44 Initial 44 | . . 44 Average 38 | . 42 33 Influence Increases 486 | 5 481 . Destroy 0b10 Robot/C 240 | . 240 . Destroy 0b10 Robot/NC 35 | 5 30 . Destroy Leader 66 | . 66 . Successful Hack 18 | . 18 . Disable Machine 45 | . 45 . Destroy Structure 7 | . 7 . Lose Combat Pursuer 75 | . 75 . Influence Decreases 472 | 5 376 91 Entered New Map 61 | . . 61 Time Decay 391 | 5 356 30 Lost Part 20 | . 20 . Squads Dispatched 4 | . 4 . Investigation 2 | . 2 . Extermination . | . . . Reinforcement 2 | . 2 . Assault . | . . . Garrison . | . . . Intercept . | . . . Searches Triggered . | . . . Construction Impeded . | . . . Haulers Reinforced . | . . . Active Scanning Responses . | . . . Cargo Convoy Interrupts . | . . . Stealth | -11 -10 -9 --------- Run | Yrd Mat Mat Distress Signals 2 | . 2 . Communications Jammed . | . . . Distress Signals . | . . . Times Spotted 25 | . 25 . Peak Tracking Total 4 | . 4 . Tactical Retreats 4 | . 4 . Traps | -11 -10 -9 ------- Run | Yrd Mat Mat Traps Triggered 2 | . 2 . Indirectly . | . . . Trap Hack Attempts . | . . . Triggered . | . . . Disarmed . | . . . Reprogrammed . | . . . Reused . | . . . Traps Extracted . | . . . Installed . | . . . Triggered . | . . . Machines | -11 -10 -9 ---------- Run | Yrd Mat Mat Machines Disabled 3 | . 3 . Max in Single Turn 2 | . 2 . Machines Repaired . | . . . Machines Dismantled . | . . . Machines Sabotaged . | . . . Overloaded Fab Kills . | . . . Hacking | -11 -10 -9 --------- Run | Yrd Mat Mat Machines Accessed 3 | . 3 . Terminals 3 | . 3 . Fabricators . | . . . Repair Stations . | . . . Recycling Units . | . . . Scanalyzers . | . . . Garrison Access . | . . . Total Hacks 6 | . 6 . Successful 3 | . 3 . Failed 3 | . 3 . Catastrophic . | . . . Database Lockouts . | . . . Manual 6 | . 6 . Terminals 6 | . 6 . Fabricators . | . . . Repair Stations . | . . . Recycling Units . | . . . Scanalyzers . | . . . Garrison Access . | . . . Terminal Hacks . | . . . Fabricator Hacks . | . . . Repair Station Hacks . | . . . Recycling Unit Hacks . | . . . Scanalyzer . | . . . Garrison Access Hacks . | . . . Unauthorized Hacks 3 | . 3 . Terminals 3 | . 3 . Botnet 2 | . 2 . Operators 1 | . 1 . Fabricators . | . . . Repair Stations . | . . . Recycling Units . | . . . Scanalyzers . | . . . Garrison Access . | . . . Data Cores Recovered . | . . . Used . | . . . Hacking Detections 3 | . 3 . Full Trace Events . | . . . Feedback Events . | . . . Feedback Blocked . | . . . Robot Schematics Acquired . | . . . Robots Built . | . . . Authchips . | . . . Time . | . . . Total Robot Build Rating . | . . . Part Schematics Acquired . | . . . Parts Built . | . . . Authchips . | . . . Time . | . . . Total Part Build Rating . | . . . Part Studies Acquired . | . . . Parts Repaired . | . . . Time . | . . . Parts Recycled . | . . . Recycled Matter . | . . . Retrieved Matter . | . . . Retrieved Components . | . . . Parts Scanalyzed . | . . . Part Schematics Acquired . | . . . Parts Damaged . | . . . Bothacking | -11 -10 -9 ------------ Run | Yrd Mat Mat Used RIF Installer . | . . . Robots Hacked . | . . . Non-combat . | . . . Combat . | . . . Robot Hacks Applied . | . . . Relay Couplers Released . | . . . Fabnet Peak Effective % . | . . . Robots Rewired . | . . . Allies Hacked . | . . . Hacks Repelled . | . . . Allies | -11 -10 -9 -------- Run | Yrd Mat Mat Total Allies . | . . . Largest Group . | . . . Highest-Rated Group . | . . . Highest-Rated Ally . | . . . Total Orders . | . . . Ally Attacks . | . . . Total Damage . | . . . Kills . | . . . Allies Corrupted . | . . . Allies Melted . | . . . Intel | -11 -10 -9 ------- Run | Yrd Mat Mat Active Infowar (turns) 1163 | 27 1076 60 Seismic 1163 | 27 1076 60 Robot Analysis Total . | . . . Derelict Logs Recovered . | . . . Drone Launches . | . . . Drone Recoveries . | . . . Exploration | -11 -10 -9 ------------- Run | Yrd Mat Mat Turns Passed 1233 | 97 1076 60 Spaces Moved 602 | 48 519 35 Core 7 | 7 . . Treads 595 | 41 519 35 Legs . | . . . Wheels . | . . . Hover . | . . . Flight . | . . . Fastest Speed 50 | 50 160 160 Average Speed 159 | 150 160 160 Slowest Speed 160 | 160 160 160 Overloaded Moves . | . . . Propulsion Burnouts . | . . . Robots Hopped . | . . . Potential Cave-ins . | . . . Cave-ins Triggered . | . . . Exploration Rate (%) 27 | 4 71 7 Regions Visited 2 Branch Regions . Pre-discovered Areas . | . . . Known Exits Taken . | . . . Unknown Exits Taken 2 | 1 1 . Scrap Searched . | . . . Spaces Dug 1 | . 1 . Terrain Destroyed 11 | 5 6 . Melee 1 | . 1 . Projectile . | . . . AOE 10 | 5 5 . Terrain Rammed . | . . . Walls Destroyed . | . . . Machines Disabled . | . . . Actions | -11 -10 -9 --------- Run | Yrd Mat Mat Total 770 | 64 668 38 Wait 74 | . 74 . Move 600 | 47 518 35 Hop . | . . . Pick Up 15 | 6 8 1 Fast Attach 7 | 6 . 1 Attach 4 | 1 2 1 Detach . | . . . Swap 5 | 1 4 . Drop 4 | . 4 . Fire 25 | 3 22 . Melee 36 | . 36 . Ram . | . . . Kick . | . . . Crush . | . . . Escape Stasis . | . . . Rewire . | . . . Trap . | . . . Miscellaneous . | . . . Route ------- -11/Scrapyard -10/Materials (discovered 3 exits: [*Mat x2] / [*Min]) -9/Materials (discovered 1 exit: [*Sto]) History --------- Turn | Location | Event 29 | -11/Scrapyard | Discovered new exit (range 15) 98 | -11/Scrapyard | Entered Materials 309 | -10/Materials | Build established: Mutant 432 | -10/Materials | Discovered new exit (range 6) 510 | -10/Materials | Discovered new exit (range 15) 774 | -10/Materials | Discovered new exit (range 3) 1174 | -10/Materials | Entered another Materials area 1174 | -9/Materials | Evolved 2 slots: Propulsion x1, Utility x1 1182 | -9/Materials | Discovered new exit (range 13) 1234 | -9/Materials | Self-destructed Last Messages --------------- 01036_ Destroyed Lgt. Ion Engine. 01036_ Destroyed Hover Unit. 01036_ O-16 Technician system corrupted by crushing effect. 01036_ Hover Unit fried. 01036_ Hacking Suite fried. 01036_ O-16 Technician destroyed. 01093_ Destroyed Heat Sink. 01093_ G-34 Mercenary system corrupted by crushing effect. 01093_ G-34 Mercenary knocked back. 01100_ G-34 Mercenary destroyed. 01173_ Integrated Corrupted Med. Storage Unit (+3). PARAMETERS=PROPULSION+1,UTILITY+1 LOCATION=UNKNOWN GOAL=ESCAPE 01182_ EXIT=FOUND 01197_ Acquired Imp. Treads. 01232_ Acquired Huge Storage Unit. Map ----- +----------------------------------------------------+ | ?????????????????????????????? | | ?????????????????????????????? | | ?????????????????????????????? | | ?????????????????????????????? | | ?????????????????????????????? | | ?????????????????????????????? | | ?????????????????????????????? | | ?????????????????????????????? | | ?????????????????????????????? | | ?????????????????????????????? | | ?????????????????????????????? | | ?????????????????????????????? | | ?????????????????????????????? | | ?????????????????????????????? | | ?????????????????????????????? | | ?????????????????????????????? | | ?????????????????????????????? | | ?????????????????????????????? | | ????? ?????????###########??? | | ????? ????????# """T""" #??? | | ???? ?##????# #??? | | ????? ## ????# """ #??? | | ??????? ???# """"" #??? | | ????????